fUST/lending_fUST_20260419
["ID","MTS","AMOUNT","RATE_DAILY","PERIOD"]
[420831889,1776601086777,-500.0,0.00024657,120]
[420831890,1776601086838,-500.0,0.00024657,120]
[420831891,1776601086902,-500.0,0.00024657,120]
[420831892,1776601086965,-500.0,0.00024657,120]
[420831893,1776601087028,-500.0,0.00024657,120]
[420831894,1776601087093,-500.0,0.00024657,120]
[420831895,1776601087157,-500.0,0.00024657,120]
[420831896,1776601087222,-634.93591813,0.00024657,120]
[420831897,1776601087286,-500.0,0.00024657,120]
[420831898,1776601087354,-566.69,0.00024657,120]
[420831899,1776601087419,-500.0,0.00024657,120]
[420831900,1776601087485,-566.69,0.00024657,120]
[420831901,1776601087555,-500.0,0.00024657,120]
[420831902,1776601087624,-566.69,0.00024657,120]
[420831903,1776601087691,-323.73735682,0.00024657,120]
[420831904,1776601087760,-500.0,0.00024657,120]
[420831905,1776601087827,-500.0,0.00024657,120]
[420831906,1776601087895,-566.69,0.00024657,120]
[420831907,1776601087960,-500.0,0.00024657,120]
[420831908,1776601088026,-500.0,0.00024657,120]
[420831909,1776601088113,-566.69,0.00024657,120]
[420831910,1776601088208,-500.0,0.00024657,120]
[420831911,1776601088294,-500.0,0.00024657,120]
[420831912,1776601088389,-500.68291107,0.00024657,120]
[420831913,1776601088479,-566.69,0.00024657,120]
[420831914,1776601088564,-209.4180349,0.00024657,120]
[420831915,1776601088643,-776.58,0.00024657,120]
[420831916,1776601088722,-566.69,0.00024657,120]
[420831917,1776601088800,-776.58,0.00024657,120]
[420831918,1776601088885,-500.0,0.00024657,120]
[420831919,1776601088968,-566.69,0.00024657,120]
[420831920,1776601089044,-776.58,0.00024657,120]
[420831921,1776601089121,-500.0,0.00024657,120]
[420831922,1776601089196,-500.0,0.00024657,120]
[420831923,1776601089272,-500.0,0.00024657,120]
[420831924,1776601089348,-566.69,0.00024657,120]
[420831925,1776601089424,-776.58,0.00024657,120]
[420831926,1776601089501,-500.0,0.00024657,120]
[420831927,1776601089577,-500.0,0.00024657,120]
[420831928,1776601089656,-548.39030396,0.00024657,120]
[420831929,1776601089736,-566.69,0.00024657,120]
[420831930,1776601089813,-776.58,0.00024657,120]
[420831931,1776601089893,-513.28692191,0.00024657,120]
[420831932,1776601089975,-513.15270862,0.00024657,120]
[420831933,1776601090059,-566.69,0.00024657,120]
[420831934,1776601090137,-776.58,0.00024657,120]
[420831935,1776601090216,-566.69,0.00024657,120]
[420831936,1776601090295,-776.58,0.00024657,120]
[420831937,1776601090374,-776.58,0.00024657,120]
[420831938,1776601090602,-566.69,0.00024657,120]
[420831939,1776601090675,-776.58,0.00024657,120]
[420831940,1776601090743,-566.69,0.00024657,120]
[420831941,1776601090806,-776.58,0.00024657,120]
[420831942,1776601090869,-776.58,0.00024657,120]
[420831943,1776601090936,-566.69,0.00024657,120]
[420831944,1776601090999,-776.58,0.00024657,120]
[420831945,1776601091066,-566.69,0.00024657,120]
[420831946,1776601091133,-628.10811809,0.00024657,120]
[420831947,1776601091196,-776.58,0.00024657,120]
[420831948,1776601091263,-566.69,0.00024657,120]
[420831949,1776601091326,-904.36,0.00024657,120]
[420831950,1776601091390,-776.58,0.00024657,120]
[420831951,1776601091453,-1001.43,0.00024657,120]
[420831952,1776601091519,-566.69,0.00024657,120]
[420831953,1776601091587,-904.36,0.00024657,120]
[420831954,1776601091656,-776.58,0.00024657,120]
[420831955,1776601091722,-1001.43,0.00024657,120]
[420831956,1776601091786,-566.69,0.00024657,120]
[420831957,1776601091849,-904.36,0.00024657,120]
[420831958,1776601091912,-776.58,0.00024657,120]
[420831959,1776601091975,-1001.43,0.00024657,120]
[420831960,1776601092037,-11021.62,0.00024657,120]
[420831961,1776601092101,-566.69,0.00024657,120]
[420831962,1776601092166,-904.36,0.00024657,120]
[420831963,1776601092225,-776.58,0.00024657,120]
[420831964,1776601092288,-566.69,0.00024657,120]
[420831965,1776601092349,-1001.43,0.00024657,120]
[420831966,1776601092411,-11021.62,0.00024657,120]
[420831967,1776601092472,-904.36,0.00024657,120]
[420831968,1776601092534,-776.58,0.00024657,120]
[420831969,1776601092600,-566.69,0.00024657,120]
[420831970,1776601092664,-1001.43,0.00024657,120]
[420831971,1776601092727,-11021.62,0.00024657,120]
[420831972,1776601092789,-776.58,0.00024657,120]
[420831973,1776601092851,-500.0,0.00024657,120]
[420831974,1776601092915,-566.69,0.00024657,120]
[420831975,1776601092980,-1001.43,0.00024657,120]
[420831976,1776601093044,-11021.62,0.00024657,120]
[420831977,1776601093108,-776.58,0.00024657,120]
[420831978,1776601093172,-501.34342985,0.00024657,120]
[420831979,1776601093235,-566.72096321,0.00024657,120]
[420831980,1776601093298,-1001.43,0.00024657,120]
[420831981,1776601093362,-11021.62,0.00024657,120]
[420831982,1776601093427,-776.58,0.00024657,120]
[420831983,1776601093488,-1001.43,0.00024657,120]
[420831984,1776601093553,-11021.62,0.00024657,120]
[420831985,1776601093623,-776.58,0.00024657,120]
[420831986,1776601093688,-904.36,0.00024657,120]
[420831987,1776601093750,-1001.43,0.00024657,120]
[420831988,1776601093815,-776.58,0.00024657,120]
[420831989,1776601093879,-904.36,0.00024657,120]
[420831990,1776601093946,-11021.62,0.00024657,120]
[420831991,1776601094012,-1001.43,0.00024657,120]
[420831992,1776601094077,-776.5945673,0.00024657,120]
[420831993,1776601094139,-904.36,0.00024657,120]
[420831994,1776601094201,-11021.62,0.00024657,120]
[420831995,1776601094263,-1001.43,0.00024657,120]
[420831996,1776601094324,-904.36,0.00024657,120]
[420831997,1776601094385,-11021.62,0.00024657,120]
[420831998,1776601094445,-1001.43,0.00024657,120]
[420831999,1776601094617,-904.36,0.00024657,120]
[420832000,1776601094683,-11021.62,0.00024657,120]
[420832001,1776601094748,-1001.43,0.00024657,120]
[420832002,1776601094813,-11021.62,0.00024657,120]
[420832003,1776601094877,-1001.43,0.00024657,120]
[420832004,1776601094944,-1001.43,0.00024657,120]
[420832005,1776601095010,-11021.62,0.00024657,120]
[420832006,1776601095072,-1001.43,0.00024657,120]
[420832007,1776601095139,-11021.62,0.00024657,120]
[420832008,1776601095205,-1001.43,0.00024657,120]
[420832009,1776601095269,-500.0,0.00024657,120]
[420832010,1776601095331,-11021.62,0.00024657,120]
[420832011,1776601095394,-1001.43,0.00024657,120]
[420832012,1776601095459,-501.8761759,0.00024657,120]
[420832013,1776601095522,-500.0,0.00024657,120]
[420832014,1776601095587,-1001.43,0.00024657,120]
[420832015,1776601095653,-11021.62,0.00024657,120]
[420832016,1776601095717,-519.0891691,0.00024657,120]
[420832017,1776601095782,-1001.43,0.00024657,120]
[420832018,1776601095845,-11021.62,0.00024657,120]
[420832019,1776601095908,-904.36,0.00024657,120]
[420832020,1776601095971,-11021.62,0.00024657,120]
[420832021,1776601096035,-904.36,0.00024657,120]
[420832022,1776601096099,-1001.43,0.00024657,120]
[420832023,1776601096162,-11021.62,0.00024657,120]
[420832024,1776601096225,-904.36,0.00024657,120]
[420832025,1776601096287,-1001.43,0.00024657,120]
[420832026,1776601096349,-11021.62,0.00024657,120]
[420832027,1776601096413,-904.36,0.00024657,120]
[420832028,1776601096475,-1001.43,0.00024657,120]
[420832029,1776601096538,-904.36,0.00024657,120]
[420832030,1776601096602,-11021.62,0.00024657,120]
[420832031,1776601096664,-1001.65280068,0.00024657,120]
[420832032,1776601096729,-3285.93,0.00024657,120]
[420832033,1776601096792,-904.36,0.00024657,120]
[420832034,1776601096856,-3285.93,0.00024657,120]
[420832035,1776601096920,-904.36,0.00024657,120]
[420832036,1776601096986,-11021.62,0.00024657,120]
[420832037,1776601097053,-3285.93,0.00024657,120]
[420832038,1776601097117,-904.36,0.00024657,120]
[420832039,1776601097180,-11021.62,0.00024657,120]
[420832040,1776601097244,-904.36,0.00024657,120]
[420832041,1776601097305,-3285.93,0.00024657,120]
[420832042,1776601097366,-11021.62,0.00024657,120]
[420832043,1776601097426,-904.36,0.00024657,120]
[420832044,1776601097488,-3285.93,0.00024657,120]
[420832045,1776601097552,-11021.83981602,0.00024657,120]
[420832046,1776601097615,-904.36,0.00024657,120]
[420832047,1776601097679,-904.36,0.00024657,120]
[420832048,1776601097743,-904.36,0.00024657,120]
[420832049,1776601097805,-904.4439006,0.00024657,120]
[420832050,1776601097869,-614.77,0.00024657,120]
[420832051,1776601097931,-614.77,0.00024657,120]
[420832052,1776601097994,-3519.72,0.00024657,120]
[420832053,1776601098058,-614.77,0.00024657,120]
[420832054,1776601098120,-3519.72,0.00024657,120]
[420832055,1776601098182,-614.77,0.00024657,120]
[420832056,1776601098244,-3519.72,0.00024657,120]
[420832057,1776601098307,-614.77,0.00024657,120]
[420832058,1776601098369,-3519.72,0.00024657,120]
[420832059,1776601098549,-614.77,0.00024657,120]
[420832060,1776601098613,-614.77,0.00024657,120]
[420832061,1776601098676,-614.77,0.00024657,120]
[420832062,1776601098741,-614.77,0.00024657,120]
[420832063,1776601098804,-500.0,0.00024657,120]
[420832064,1776601098866,-614.77,0.00024657,120]
[420832065,1776601098931,-500.0,0.00024657,120]
[420832066,1776601098994,-500.0,0.00024657,120]
[420832067,1776601099058,-500.0,0.00024657,120]
[420832068,1776601099120,-614.77,0.00024657,120]
[420832069,1776601099182,-474.49617644,0.00024657,120]
[420832070,1776601099246,-420.22286836,0.00024657,120]
[420832071,1776601099308,-614.77,0.00024657,120]
[420832072,1776601099372,-7449.81,0.00024657,120]
[420832073,1776601099434,-614.77,0.00024657,120]
[420832074,1776601099499,-614.77,0.00024657,120]
[420832075,1776601099565,-7449.81,0.00024657,120]
[420832076,1776601099632,-614.77,0.00024657,120]
[420832077,1776601099699,-7449.81,0.00024657,120]
[420832078,1776601099763,-614.77,0.00024657,120]
[420832079,1776601099830,-7449.81,0.00024657,120]
[420832080,1776601099896,-614.77,0.00024657,120]
[420832081,1776601099963,-7449.81,0.00024657,120]
[420832082,1776601100030,-7449.81,0.00024657,120]
[420832083,1776601100096,-614.77,0.00024657,120]
[420832084,1776601100164,-11044.62,0.00024657,120]
[420832085,1776601100234,-7449.81,0.00024657,120]
[420832086,1776601100300,-614.77,0.00024657,120]
[420832087,1776601100355,-11044.62,0.00024657,120]
[420832088,1776601100406,-7449.81,0.00024657,120]
[420832089,1776601100459,-614.77,0.00024657,120]
[420832090,1776601100511,-11044.62,0.00024657,120]
[420832091,1776601100563,-7449.81,0.00024657,120]
[420832092,1776601100616,-614.77,0.00024657,120]
[420832093,1776601100668,-11044.62,0.00024657,120]
[420832094,1776601100720,-7449.81,0.00024657,120]
[420832095,1776601100772,-614.77,0.00024657,120]
[420832096,1776601100836,-11044.62,0.00024657,120]
[420832097,1776601100901,-7449.81,0.00024657,120]
[420832098,1776601100964,-614.77,0.00024657,120]
[420832099,1776601101031,-7449.81,0.00024657,120]
[420832100,1776601101095,-614.78000817,0.00024657,120]
[420832101,1776601101158,-11044.62,0.00024657,120]
[420832102,1776601101219,-7449.81,0.00024657,120]
[420832103,1776601101282,-11044.62,0.00024657,120]
[420832104,1776601101343,-500.0,0.00024657,120]
[420832105,1776601101405,-11044.62,0.00024657,120]
[420832106,1776601101466,-304.16612615,0.00024657,120]
[420832107,1776601101528,-7449.81,0.00024657,120]
[420832108,1776601101593,-11044.62,0.00024657,120]
[420832109,1776601101658,-7449.81,0.00024657,120]
[420832110,1776601101722,-7449.81,0.00024657,120]
[420832111,1776601101786,-11044.62,0.00024657,120]
[420832112,1776601101848,-7449.81,0.00024657,120]
[420832113,1776601101912,-11044.62,0.00024657,120]
[420832114,1776601101975,-7449.81,0.00024657,120]
[420832115,1776601102039,-11044.62,0.00024657,120]
[420832116,1776601102108,-508.754354,0.00024657,120]
[420832117,1776601102175,-11044.62,0.00024657,120]
[420832118,1776601102241,-7449.81,0.00024657,120]
[420832119,1776601102308,-7449.81,0.00024657,120]
[420832120,1776601102373,-11044.62,0.00024657,120]
[420832121,1776601102438,-7449.81,0.00024657,120]
[420832122,1776601102504,-11044.62,0.00024657,120]
[420832123,1776601102574,-7449.81,0.00024657,120]
[420832124,1776601102644,-11044.62,0.00024657,120]
[420832125,1776601102712,-7449.81,0.00024657,120]
[420832126,1776601102781,-11044.62,0.00024657,120]
[420832127,1776601102848,-7449.96144395,0.00024657,120]
[420832128,1776601102918,-11044.62,0.00024657,120]
[420832129,1776601102985,-11044.62,0.00024657,120]
[420832130,1776601103052,-500.0,0.00024657,120]
[420832131,1776601103118,-11044.62,0.00024657,120]
[420832132,1776601103182,-500.0,0.00024657,120]
[420832133,1776601103248,-11044.62,0.00024657,120]
[420832134,1776601103311,-500.0,0.00024657,120]
[420832135,1776601103373,-11044.62,0.00024657,120]
[420832136,1776601103556,-11044.62,0.00024657,120]
[420832137,1776601103621,-500.0,0.00024657,120]
[420832138,1776601103686,-11044.66843892,0.00024657,120]
[420832139,1776601103751,-500.0,0.00024657,120]
[420832140,1776601103813,-357.70438327,0.00024657,120]
[420832141,1776601103876,-500.0,0.00024657,120]
[420832142,1776601103939,-3285.93,0.00024657,120]
[420832143,1776601104002,-512.08110846,0.00024657,120]
[420832144,1776601104066,-500.0,0.00024657,120]
[420832145,1776601104128,-3285.93,0.00024657,120]
[420832146,1776601104191,-500.0,0.00024657,120]
[420832147,1776601104255,-3285.93,0.00024657,120]
[420832148,1776601104315,-500.0,0.00024657,120]
[420832149,1776601104378,-3285.93,0.00024657,120]
[420832150,1776601104442,-500.0,0.00024657,120]
[420832151,1776601104507,-3285.93,0.00024657,120]
[420832152,1776601104575,-500.0,0.00024657,120]
[420832153,1776601104643,-3285.93,0.00024657,120]
[420832154,1776601104708,-500.0,0.00024657,120]
[420832155,1776601104772,-3285.93,0.00024657,120]
[420832156,1776601104836,-505.63988338,0.00024657,120]
[420832157,1776601104900,-164.46145247,0.00024657,120]
[420832158,1776601104963,-3285.93,0.00024657,120]
[420832159,1776601105025,-776.08,0.00024657,120]
[420832160,1776601105086,-3285.93,0.00024657,120]
[420832161,1776601105146,-776.08,0.00024657,120]
[420832162,1776601105208,-3285.93,0.00024657,120]
[420832163,1776601105269,-776.08,0.00024657,120]
[420832164,1776601105329,-3285.93,0.00024657,120]
[420832165,1776601105388,-500.0,0.00024657,120]
[420832166,1776601105447,-776.08,0.00024657,120]
[420832167,1776601105508,-503.74158529,0.00024657,120]
[420832168,1776601105571,-3285.93,0.00024657,120]
[420832169,1776601105643,-776.08,0.00024657,120]
[420832170,1776601105708,-3285.93,0.00024657,120]
[420832171,1776601105771,-500.0,0.00024657,120]
[420832172,1776601105835,-500.0,0.00024657,120]
[420832173,1776601105901,-776.08,0.00024657,120]
[420832174,1776601105965,-3285.93,0.00024657,120]
[420832175,1776601106028,-500.0,0.00024657,120]
[420832176,1776601106091,-527.74590475,0.00024657,120]
[420832177,1776601106156,-776.08,0.00024657,120]
[420832178,1776601106216,-3285.93,0.00024657,120]
[420832179,1776601106277,-316.69355039,0.00024657,120]
[420832180,1776601106339,-776.08,0.00024657,120]
[420832181,1776601106398,-3285.93,0.00024657,120]
[420832182,1776601106458,-776.08,0.00024657,120]
[420832183,1776601106521,-962.86,0.00024657,120]
[420832184,1776601106583,-3285.93,0.00024657,120]
[420832185,1776601106647,-776.08,0.00024657,120]
[420832186,1776601106715,-962.86,0.00024657,120]
[420832187,1776601106778,-3285.93,0.00024657,120]
[420832188,1776601106842,-1147.299,0.00024657,120]
[420832189,1776601106910,-500.0,0.00024657,120]
[420832190,1776601106974,-776.08,0.00024657,120]
[420832191,1776601107039,-962.86,0.00024657,120]
[420832192,1776601107101,-3285.9963113,0.00024657,120]
[420832193,1776601107161,-500.0,0.00024657,120]
[420832194,1776601107222,-776.08,0.00024657,120]
[420832195,1776601107283,-1717.57,0.00024657,120]
[420832196,1776601107348,-962.86,0.00024657,120]
[420832198,1776601107409,-500.0,0.00024657,120]
[420832199,1776601107471,-776.08,0.00024657,120]
[420832200,1776601107537,-962.86,0.00024657,120]
[420832201,1776601107601,-1717.57,0.00024657,120]
[420832202,1776601107663,-500.0,0.00024657,120]
[420832203,1776601107728,-776.08,0.00024657,120]
[420832204,1776601107789,-962.86,0.00024657,120]
[420832205,1776601107853,-1717.57,0.00024657,120]
[420832206,1776601107919,-500.0,0.00024657,120]
[420832207,1776601107988,-776.08,0.00024657,120]
[420832208,1776601108053,-962.86,0.00024657,120]
[420832209,1776601108113,-1717.57,0.00024657,120]
[420832210,1776601108174,-500.0,0.00024657,120]
[420832211,1776601108236,-776.08,0.00024657,120]
[420832212,1776601108302,-962.86,0.00024657,120]
[420832213,1776601108363,-1717.57,0.00024657,120]
[420832214,1776601108424,-776.08,0.00024657,120]
[420832215,1776601108485,-962.86,0.00024657,120]
[420832216,1776601108547,-1717.57,0.00024657,120]
[420832217,1776601108610,-243.00567079,0.00024657,120]
[420832218,1776601110760,1006.47812067,0.00024719,120]
[420832227,1776601523539,88.62447321,0.00013365,14]
[420832304,1776601832615,-725.0,7.17e-05,2]
[420832306,1776601832625,-481.0,7.17e-05,2]
[420832308,1776601832635,-312.0,7.17e-05,2]
[420832310,1776601832644,-197.77845508,7.17e-05,2]
[420832312,1776601832653,-505.0,7.17e-05,2]
[420832314,1776601832662,-300.0,8.169e-05,2]
[420832316,1776601832671,-1200.0,8.169e-05,2]
[420832318,1776601832680,-725.0,8.17e-05,2]
[420832320,1776601832689,-481.0,8.17e-05,2]
[420832322,1776601832698,-312.0,8.17e-05,2]
[420832324,1776601832707,-734.73395539,8.2e-05,2]
[420832326,1776601832719,-3198.05896302,8.2e-05,2]
[420832328,1776601832728,-1837.20522344,8.2e-05,2]
[420832348,1776601838803,-378.43,7.098e-05,2]
[420832349,1776601838813,-162.79477656,8.2e-05,2]
[420832350,1776601838822,-2000.0,8.3e-05,2]
[420832351,1776601838832,-2000.0,8.4e-05,2]
[420832352,1776601838842,-2000.0,8.5e-05,2]
[420832353,1776601838851,-2000.0,8.6e-05,2]
[420832354,1776601838861,-2000.0,8.7e-05,2]
[420832355,1776601838871,-2000.0,8.8e-05,2]
[420832356,1776601838881,-2000.0,8.9e-05,2]
[420832357,1776601838892,-725.0,9.17e-05,2]
[420832358,1776601838901,-481.0,9.17e-05,2]
[420832359,1776601838911,-312.0,9.17e-05,2]
[420832360,1776601838920,-725.0,0.0001017,2]
[420832361,1776601838930,-481.0,0.0001017,2]
[420832362,1776601838939,-312.0,0.0001017,2]
[420832363,1776601838948,-725.0,0.0001117,2]
[420832364,1776601838958,-481.0,0.0001117,2]
[420832365,1776601838967,-312.0,0.0001117,2]
[420832366,1776601838976,-739.79985462,0.0001217,2]
[420832367,1776601838986,-493.49308465,0.0001217,2]
[420832368,1776601838995,-330.66588517,0.0001217,2]
[420832369,1776601839004,-500.0,0.00013364,2]
[420832370,1776601839013,-349.93497891,0.00013364,2]
[420832371,1776601839022,-500.0,0.00013364,2]
[420832373,1776601839032,-500.0,0.00013364,2]
[420832374,1776601839041,-608.75671247,0.00013364,2]
[420832375,1776601839050,-546.33661956,0.00013364,2]
[420832376,1776601839059,-500.0,0.00013364,2]
[420832377,1776601839068,-500.0,0.00013364,2]
[420832378,1776601839259,-500.0,0.00013364,2]
[420832379,1776601839268,-500.0,0.00013364,2]
[420832380,1776601839278,-500.0,0.00013364,2]
[420832381,1776601839287,-529.9087709,0.00013364,2]
[420832382,1776601839297,-80709.47960199,0.00013365,14]
[420832383,1776601839309,-1458.09337125,0.00013365,14]
[420832384,1776601839320,-5499.8827021,0.00013365,14]
[420832394,1776601843666,-9308.68351841,0.00013365,14]
[420832402,1776601846821,-3232.10562877,0.00013365,14]
[420832403,1776601846836,-7817.37843126,0.00013365,14]
[420832494,1776603038102,-5000.0,0.00011219,2]
[420832495,1776603038112,-5000.0,0.00011332,2]
[420832496,1776603038122,-300.0,0.00011446,2]
[420832497,1776603038131,-500.0,0.00011446,2]
[420832498,1776603038217,-230.02485162,0.00011447,2]
[420832499,1776603038270,-7.9377098,0.00011562,2]
[420832510,1776603040347,-292.0622902,0.00011562,2]
[420832511,1776603040357,-1200.0,0.00011562,2]
[420832512,1776603040366,-155.1443594,0.00012409,2]
[420832513,1776603040376,-159.10139967,0.00012409,2]
[420832517,1776603043213,-585.75366434,0.00012409,2]
[420832518,1776603046061,-1077.33476705,0.00012409,2]
[420832519,1776603046073,-838.59313204,0.00012409,2]
[420832520,1776603046082,-150.8240868,0.00012409,2]
[420832521,1776603046092,-13120.8869448,0.00012571,2]
[420832522,1776603046102,-152.0,0.00013246,7]
[420832523,1776603046111,-152.0,0.0001325,30]
[420832524,1776603046121,-152.0,0.00013276,7]
[420832525,1776603046130,-152.0,0.00013317,7]
[420832526,1776603046140,-152.0,0.00013321,30]
[420832527,1776603046150,-151.0,0.00013364,2]
[420832528,1776603046159,-151.0,0.00013364,2]
[420832529,1776603046168,-151.0,0.00013364,2]
[420832530,1776603046177,-151.0,0.00013364,2]
[420832531,1776603046186,-151.0,0.00013364,2]
[420832532,1776603046196,-151.0,0.00013364,2]
[420832533,1776603046205,-151.0,0.00013364,2]
[420832534,1776603046214,-151.0,0.00013364,2]
[420832535,1776603046224,-3897.05526007,0.00013365,14]
[420832536,1776603046233,-1000.0,0.00013699,2]
[420832537,1776603046242,-1000.0,0.00013699,2]
[420832538,1776603046251,-1020.48336247,0.00013699,2]
[420832539,1776603046261,-2660.7829631,0.00013984,2]
[420832540,1776603046270,-645.85388111,0.00014545,2]
[420832541,1776603046279,-2583.41552445,0.00014545,2]
[420832542,1776603046289,-5806.87224507,0.00014545,2]
[420832543,1776603046298,-1504.36745749,0.00015211,2]
[420832544,1776603046307,-434.61989478,0.00015311,2]
[420832545,1776603046317,-1738.47957911,0.00015311,2]
[420832546,1776603046326,-3907.66747395,0.00015311,2]
[420832547,1776603046336,-152.0,0.00015314,7]
[420832548,1776603046345,-152.0,0.00015318,30]
[420832549,1776603046354,-183.040749,0.00015475,2]
[420832550,1776603046363,-2660.7829631,0.00015559,2]
[420832551,1776603046373,-373.734,0.00015815,2]
[420832552,1776603046382,-234.30630138,0.00015847,2]
[420832553,1776603046392,-281.10097455,0.00015847,2]
[420832554,1776603046401,-16975.30401981,0.00015848,2]
[420832614,1776603366446,779.55643688,9e-05,120]
[420832620,1776603681732,-231.86144674,8.821e-05,2]
[420832621,1776603681796,-3939.13855326,8.821e-05,2]
[420832622,1776603710965,-231.86144674,8.821e-05,2]
[420832749,1776604238397,-597.13855326,8.305e-05,2]
[420832751,1776604238407,-3080.36506712,8.389e-05,2]
[420832779,1776604243301,-1454.0,8.389e-05,2]
[420832782,1776604246209,-465.63493288,8.389e-05,2]
[420832783,1776604246219,-274.74828328,8.474e-05,2]
[420832784,1776604246228,-150.0,8.517e-05,2]
[420832785,1776604246238,-300.0,8.999e-05,2]
[420832786,1776604246247,-1200.0,8.999e-05,2]
[420832787,1776604246257,-1286.57665815,9e-05,2]
[420832788,1776604246266,-500.0,9e-05,2]
[420832789,1776604246276,-263.52138657,9e-05,2]
[420832790,1776604246285,-300.0,9.179e-05,2]
[420832791,1776604246295,-300.0,9.179e-05,2]
[420832792,1776604246305,-300.0,9.179e-05,2]
[420832793,1776604246314,-300.0,9.179e-05,2]
[420832794,1776604246323,-300.0,9.179e-05,2]
[420832795,1776604246333,-300.0,9.179e-05,2]
[420832796,1776604246342,-300.0,9.179e-05,2]
[420832797,1776604246351,-300.0,9.179e-05,2]
[420832798,1776604246361,-300.0,9.179e-05,2]
[420832799,1776604246370,-300.0,9.179e-05,2]
[420832800,1776604246380,-300.0,9.179e-05,2]
[420832801,1776604246390,-300.0,9.179e-05,2]
[420832802,1776604246399,-300.0,9.179e-05,2]
[420832803,1776604246409,-300.0,9.179e-05,2]
[420832804,1776604246419,-300.0,9.179e-05,2]
[420832805,1776604246428,-420.0,9.899e-05,2]
[420832806,1776604246438,-1072.48391675,9.899e-05,2]
[420832807,1776604246451,-113.51608325,9.899e-05,2]
[420832808,1776604246460,-177.0,0.00010517,2]
[420832809,1776604246470,-252.03567333,0.00011085,2]
[420832810,1776604246480,-3723.14802031,0.000123,3]
[420832811,1776604246490,-180.47696495,0.00012517,2]
[420832812,1776604246500,-387.72737548,0.00013233,14]
[420832813,1776604246509,-1000.0,0.00013699,2]
[420832814,1776604246519,-1000.0,0.00013699,2]
[420832815,1776604246528,-1500.0,0.00013699,2]
[420832816,1776604246538,-665.1957408,0.00013766,2]
[420832817,1776604246547,-204.6629594,0.00013766,2]
[420832818,1776604246557,-600.0,0.00013813,2]
[420832819,1776604246567,-152.0,0.00014306,7]
[420832820,1776604246576,-152.0,0.00014306,7]
[420832821,1776604246586,-425.4715246,0.00014325,2]
[420832822,1776604246596,-1701.88609842,0.00014325,2]
[420832823,1776604246606,-1526.95967131,0.00014325,2]
[420832906,1776605432294,-997.32222237,6.393e-05,2]
[420832907,1776605432306,-4002.67777763,6.393e-05,2]
[420832908,1776605432316,-1138.07844532,6.458e-05,2]
[420832909,1776605432325,-150.0,6.689e-05,2]
[420832910,1776605432334,-1200.0,6.722e-05,2]
[420832911,1776605432344,-3848.96582563,6.723e-05,10]
[420832912,1776605432356,-6322.016961,6.723e-05,10]
[420832913,1776605432371,-1078.08916142,6.723e-05,10]
[420832914,1776605432384,-1409.66696981,6.723e-05,10]
[420832915,1776605432410,-276.36,6.723e-05,10]
[420832924,1776605438870,-2499.78922789,6.723e-05,10]
[420832925,1776605438880,-300.0,6.856e-05,2]
[420832926,1776605438889,-300.0,6.856e-05,2]
[420832927,1776605438899,-300.0,6.856e-05,2]
[420832928,1776605438909,-300.0,6.856e-05,2]
[420832929,1776605438918,-300.0,6.856e-05,2]
[420832930,1776605438928,-300.0,6.856e-05,2]
[420832931,1776605438938,-300.0,6.856e-05,2]
[420832932,1776605438948,-300.0,6.856e-05,2]
[420832933,1776605438958,-300.0,6.856e-05,2]
[420832934,1776605438967,-300.0,6.856e-05,2]